[Event "Titled Tuesday Blitz August 08 Early 2023"]
[White "Atakhan, Abtin"]
[Black "Aevengho"]
[WhiteFideId "22502203"]
[WhiteElo "2798"]
[BlackElo "2592"]
[Result "0-1"]
[Round "9"]
[TimeControl "180+1"]
[Date "2023.08.08"]
[WhiteClock "0:00:01"]
[BlackClock "0:00:04"]
[Board "41"]

1. Nf3 {[%clk 0:03:00]}  Nf6 {[%clk 0:02:59]} 2. g3 {[%clk 0:03:01]}  g6 {[%clk 0:03:00]} 3. Bg2 {[%clk 0:03:01]}  Bg7 {[%clk 0:03:00]} 4. O-O {[%clk 0:03:02]}  O-O {[%clk 0:03:01]} 5. c4 {[%clk 0:03:03]}  d6 {[%clk 0:03:00]} 6. Nc3 {[%clk 0:03:03]}  e5 {[%clk 0:03:01]} 7. d3 {[%clk 0:03:02]}  Nbd7 {[%clk 0:03:00]} 8. Rb1 {[%clk 0:03:01]}  c6 {[%clk 0:02:57]} 9. b4 {[%clk 0:03:01]}  Qc7 {[%clk 0:02:56]} 10. b5 {[%clk 0:03:00]}  Nc5 {[%clk 0:02:47]} 11. Nd2 {[%clk 0:02:51]}  Be6 {[%clk 0:02:43]} 12. a4 {[%clk 0:02:50]}  Rfd8 {[%clk 0:02:33]} 13. Ba3 {[%clk 0:02:50]}  Bf8 {[%clk 0:02:29]} 14. Qc2 {[%clk 0:02:45]}  a6 {[%clk 0:02:17]} 15. bxc6 {[%clk 0:02:41]}  bxc6 {[%clk 0:02:17]} 16. Bxc5 {[%clk 0:02:35]}  dxc5 {[%clk 0:02:17]} 17. Rb3 {[%clk 0:02:24]}  Rab8 {[%clk 0:02:04]} 18. Rfb1 {[%clk 0:02:23]}  Rb4 {[%clk 0:01:58]} 19. Na2 {[%clk 0:02:16]}  a5 {[%clk 0:01:58]} 20. R3b2 {[%clk 0:02:03]}  Nd7 {[%clk 0:01:54]} 21. Ne4 {[%clk 0:01:53]}  h6 {[%clk 0:01:53]} 22. Nxb4 {[%clk 0:01:48]}  cxb4 {[%clk 0:01:54]} 23. Rf1 {[%clk 0:01:38]}  f5 {[%clk 0:01:52]} 24. Nd2 {[%clk 0:01:36]}  Nc5 {[%clk 0:01:51]} 25. Ra2 {[%clk 0:01:34]}  Kg7 {[%clk 0:01:30]} 26. Nb3 {[%clk 0:01:34]}  h5 {[%clk 0:01:30]} 27. Nxc5 {[%clk 0:01:30]}  Bxc5 {[%clk 0:01:30]} 28. e3 {[%clk 0:01:30]}  Qd6 {[%clk 0:01:22]} 29. Rd1 {[%clk 0:01:27]}  h4 {[%clk 0:01:18]} 30. Qb3 {[%clk 0:01:24]}  f4 {[%clk 0:01:09]} 31. d4 {[%clk 0:01:03]}  exd4 {[%clk 0:01:04]} 32. exf4 {[%clk 0:01:03]}  h3 {[%clk 0:00:36]} 33. Be4 {[%clk 0:01:02]}  Bg4 {[%clk 0:00:23]} 34. Re1 {[%clk 0:00:54]}  Re8 {[%clk 0:00:19]} 35. Rd2 {[%clk 0:00:53]}  Re7 {[%clk 0:00:16]} 36. Kf1 {[%clk 0:00:51]}  Qd7 {[%clk 0:00:13]} 37. Bf3 {[%clk 0:00:47]}  Bf5 {[%clk 0:00:11]} 38. Rxe7+ {[%clk 0:00:38]}  Qxe7 {[%clk 0:00:12]} 39. Re2 {[%clk 0:00:36]}  Qd6 {[%clk 0:00:12]} 40. g4 {[%clk 0:00:31]}  d3 {[%clk 0:00:09]} 41. Rd2 {[%clk 0:00:28]}  Qxf4 {[%clk 0:00:09]} 42. gxf5 {[%clk 0:00:27]}  Qxf3 {[%clk 0:00:09]} 43. Qxd3 {[%clk 0:00:26]}  Qh1+ {[%clk 0:00:07]} 44. Ke2 {[%clk 0:00:26]}  Qxh2 {[%clk 0:00:08]} 45. f6+ {[%clk 0:00:19]}  Kxf6 {[%clk 0:00:07]} 46. Qf3+ {[%clk 0:00:18]}  Kg7 {[%clk 0:00:05]} 47. Rd7+ {[%clk 0:00:17]}  Kh6 {[%clk 0:00:06]} 48. Qf7 {[%clk 0:00:06]}  Qe5+ {[%clk 0:00:05]} 49. Kf3 {[%clk 0:00:06]}  h2 {[%clk 0:00:04]} 50. Qh7+ {[%clk 0:00:03]}  Kg5 {[%clk 0:00:04]} 51. Kg2 {[%clk 0:00:03]}  Qe4+ {[%clk 0:00:04]} 52. f3 {[%clk 0:00:01]}  Qe2+ {[%clk 0:00:03]} 53. Kg3 {[%clk 0:00:02]}  Bf2+ {[%clk 0:00:03]} 54. Kg2 {[%clk 0:00:02]}  Be3+ {[%clk 0:00:03]} 55. Kg3 {[%clk 0:00:02]}  Bf4+ {[%clk 0:00:03]} 56. Kh3 {[%clk 0:00:01]}  h1=Q# {[%clk 0:00:04]} 0-1


[Site "https://www.chess.com"]

[Event "Titled Tuesday Blitz August 08 Early 2023"]
[White "Aarav Dengla"]
[Black "Cherniaiev, Tykhon"]
[WhiteFideId "45059756"]
[BlackFideId "14182360"]
[WhiteElo "2567"]
[BlackElo "2772"]
[Result "0-1"]
[Round "9"]
[TimeControl "180+1"]
[Date "2023.08.08"]
[WhiteClock "0:00:16"]
[BlackClock "0:00:19"]
[Board "44"]

1. e4 {[%clk 0:02:36]}  e5 {[%clk 0:02:53]} 2. Nf3 {[%clk 0:02:36]}  Nc6 {[%clk 0:02:49]} 3. Bc4 {[%clk 0:02:36]}  Bc5 {[%clk 0:02:38]} 4. c3 {[%clk 0:02:36]}  Nf6 {[%clk 0:02:37]} 5. d4 {[%clk 0:02:31]}  exd4 {[%clk 0:02:38]} 6. e5 {[%clk 0:02:32]}  d5 {[%clk 0:02:37]} 7. Bb5 {[%clk 0:02:31]}  Ne4 {[%clk 0:02:37]} 8. cxd4 {[%clk 0:02:30]}  Bb6 {[%clk 0:02:33]} 9. O-O {[%clk 0:02:30]}  O-O {[%clk 0:02:32]} 10. Nc3 {[%clk 0:02:28]}  Bg4 {[%clk 0:02:32]} 11. Be3 {[%clk 0:02:25]}  f6 {[%clk 0:02:30]} 12. h3 {[%clk 0:02:23]}  Bxf3 {[%clk 0:02:28]} 13. gxf3 {[%clk 0:02:24]}  Nxc3 {[%clk 0:02:29]} 14. bxc3 {[%clk 0:02:25]}  fxe5 {[%clk 0:02:29]} 15. Bxc6 {[%clk 0:01:56]}  bxc6 {[%clk 0:02:30]} 16. Kh2 {[%clk 0:01:56]}  Qf6 {[%clk 0:02:13]} 17. dxe5 {[%clk 0:01:47]}  Qxe5+ {[%clk 0:02:14]} 18. f4 {[%clk 0:01:47]}  Qxc3 {[%clk 0:02:14]} 19. Rc1 {[%clk 0:01:47]}  Qf6 {[%clk 0:02:13]} 20. Rg1 {[%clk 0:01:47]}  Rae8 {[%clk 0:02:10]} 21. Qg4 {[%clk 0:01:33]}  Bxe3 {[%clk 0:01:53]} 22. fxe3 {[%clk 0:01:34]}  Rxe3 {[%clk 0:01:54]} 23. Rxc6 {[%clk 0:00:53]}  Qxf4+ {[%clk 0:01:53]} 24. Qxf4 {[%clk 0:00:54]}  Rxf4 {[%clk 0:01:54]} 25. Rxc7 {[%clk 0:00:45]}  Rf2+ {[%clk 0:01:53]} 26. Rg2 {[%clk 0:00:46]}  Rxg2+ {[%clk 0:01:54]} 27. Kxg2 {[%clk 0:00:47]}  Re2+ {[%clk 0:01:54]} 28. Kf3 {[%clk 0:00:47]}  Rxa2 {[%clk 0:01:55]} 29. Rd7 {[%clk 0:00:48]}  h6 {[%clk 0:01:45]} 30. Rxd5 {[%clk 0:00:46]}  Kh7 {[%clk 0:01:45]} 31. Rd6 {[%clk 0:00:46]}  Ra3+ {[%clk 0:01:34]} 32. Kg4 {[%clk 0:00:44]}  Ra4+ {[%clk 0:01:33]} 33. Kg3 {[%clk 0:00:34]}  h5 {[%clk 0:01:33]} 34. Rc6 {[%clk 0:00:33]}  g6 {[%clk 0:01:32]} 35. Rd6 {[%clk 0:00:32]}  Kh6 {[%clk 0:01:32]} 36. h4 {[%clk 0:00:31]}  Ra3+ {[%clk 0:01:28]} 37. Kg2 {[%clk 0:00:29]}  Kg7 {[%clk 0:01:29]} 38. Rc6 {[%clk 0:00:29]}  a5 {[%clk 0:00:59]} 39. Ra6 {[%clk 0:00:29]}  a4 {[%clk 0:00:58]} 40. Kh2 {[%clk 0:00:29]}  Ra1 {[%clk 0:00:58]} 41. Kg2 {[%clk 0:00:29]}  Ra3 {[%clk 0:00:27]} 42. Kh2 {[%clk 0:00:22]}  Kf7 {[%clk 0:00:27]} 43. Kg2 {[%clk 0:00:22]}  Ra1 {[%clk 0:00:26]} 44. Kh2 {[%clk 0:00:21]}  a3 {[%clk 0:00:24]} 45. Kg2 {[%clk 0:00:22]}  a2 {[%clk 0:00:18]} 46. Kh2 {[%clk 0:00:22]}  Ke7 {[%clk 0:00:19]} 47. Kg2 {[%clk 0:00:22]}  Kd7 {[%clk 0:00:19]} 48. Kh2 {[%clk 0:00:21]}  Kc7 {[%clk 0:00:19]} 49. Kg2 {[%clk 0:00:22]}  Kb7 {[%clk 0:00:19]} 50. Ra3 {[%clk 0:00:22]}  Kb6 {[%clk 0:00:19]} 51. Kh2 {[%clk 0:00:22]}  Kb5 {[%clk 0:00:19]} 52. Kg2 {[%clk 0:00:22]}  Kb4 {[%clk 0:00:19]} 53. Ra8 {[%clk 0:00:23]}  Kc4 {[%clk 0:00:19]} 54. Ra4+ {[%clk 0:00:22]}  Kb3 {[%clk 0:00:19]} 55. Ra8 {[%clk 0:00:17]}  Rb1 {[%clk 0:00:20]} 56. Rb8+ {[%clk 0:00:17]}  Kc4 {[%clk 0:00:19]} 57. Rc8+ {[%clk 0:00:17]}  Kd5 {[%clk 0:00:19]} 58. Rd8+ {[%clk 0:00:16]}  Ke6 {[%clk 0:00:19]} 0-1


[Site "https://www.chess.com"]

[Event "Titled Tuesday Blitz August 08 Early 2023"]
[White "Mekhitarian, Krikor Sevag"]
[Black "Camilla_Lee"]
[WhiteFideId "2107660"]
[WhiteElo "2741"]
[BlackElo "2563"]
[Result "1-0"]
[Round "9"]
[TimeControl "180+1"]
[Date "2023.08.08"]
[WhiteClock "0:00:19"]
[BlackClock "0:00:05"]
[Board "46"]

1. Nf3 {[%clk 0:02:55]}  Nf6 {[%clk 0:02:57]} 2. c4 {[%clk 0:02:55]}  c6 {[%clk 0:02:55]} 3. d4 {[%clk 0:02:50]}  d5 {[%clk 0:02:53]} 4. e3 {[%clk 0:02:51]}  Bg4 {[%clk 0:02:52]} 5. Nc3 {[%clk 0:02:50]}  e6 {[%clk 0:02:51]} 6. h3 {[%clk 0:02:50]}  Bh5 {[%clk 0:02:46]} 7. Qb3 {[%clk 0:02:50]}  Qb6 {[%clk 0:02:46]} 8. Nh4 {[%clk 0:02:50]}  Nbd7 {[%clk 0:02:42]} 9. g4 {[%clk 0:02:50]}  Bg6 {[%clk 0:02:42]} 10. Nxg6 {[%clk 0:02:49]}  hxg6 {[%clk 0:02:43]} 11. Bg2 {[%clk 0:02:49]}  dxc4 {[%clk 0:02:41]} 12. Qxc4 {[%clk 0:02:49]}  Bd6 {[%clk 0:02:42]} 13. Bd2 {[%clk 0:02:40]}  e5 {[%clk 0:02:40]} 14. O-O-O {[%clk 0:02:37]}  exd4 {[%clk 0:02:31]} 15. exd4 {[%clk 0:02:37]}  O-O {[%clk 0:02:32]} 16. h4 {[%clk 0:02:30]}  Nxg4 {[%clk 0:02:25]} 17. h5 {[%clk 0:02:30]}  g5 {[%clk 0:02:10]} 18. Bxg5 {[%clk 0:01:50]}  Nxf2 {[%clk 0:02:02]} 19. h6 {[%clk 0:01:48]}  g6 {[%clk 0:01:58]} 20. Ne4 {[%clk 0:01:47]}  Nxe4 {[%clk 0:01:53]} 21. Bxe4 {[%clk 0:01:47]}  Qb5 {[%clk 0:01:52]} 22. Qxb5 {[%clk 0:01:28]}  cxb5 {[%clk 0:01:53]} 23. Bxb7 {[%clk 0:01:25]}  Rab8 {[%clk 0:01:53]} 24. Be4 {[%clk 0:01:24]}  Kh7 {[%clk 0:01:46]} 25. Kb1 {[%clk 0:01:16]}  Nb6 {[%clk 0:01:41]} 26. Bc6 {[%clk 0:01:11]}  Nc4 {[%clk 0:01:34]} 27. Rhf1 {[%clk 0:01:07]}  Bb4 {[%clk 0:01:21]} 28. a3 {[%clk 0:01:01]}  Bd6 {[%clk 0:01:15]} 29. Bd5 {[%clk 0:00:51]}  f5 {[%clk 0:01:10]} 30. Ka2 {[%clk 0:00:46]}  Rfe8 {[%clk 0:01:07]} 31. Rg1 {[%clk 0:00:43]}  Re2 {[%clk 0:01:05]} 32. Bc1 {[%clk 0:00:38]}  Nxa3 {[%clk 0:00:51]} 33. Bf7 {[%clk 0:00:30]}  Nc4 {[%clk 0:00:32]} 34. Bxg6+ {[%clk 0:00:28]}  Kh8 {[%clk 0:00:32]} 35. Rde1 {[%clk 0:00:27]}  Rxe1 {[%clk 0:00:19]} 36. Rxe1 {[%clk 0:00:27]}  Rf8 {[%clk 0:00:19]} 37. Re6 {[%clk 0:00:21]}  f4 {[%clk 0:00:15]} 38. b3 {[%clk 0:00:21]}  Ne3 {[%clk 0:00:05]} 39. Rxd6 {[%clk 0:00:19]} 1-0


[Site "https://www.chess.com"]

[Event "Titled Tuesday Blitz August 08 Early 2023"]
[White "Mendez Fortes, Eduardo Jesus"]
[Black "Prohaszka, Peter"]
[WhiteFideId "3502376"]
[BlackFideId "726265"]
[WhiteElo "2559"]
[BlackElo "2725"]
[Result "0-1"]
[Round "9"]
[TimeControl "180+1"]
[Date "2023.08.08"]
[WhiteClock "0:00:00"]
[BlackClock "0:00:05"]
[Board "47"]

1. e4 {[%clk 0:03:00]}  c6 {[%clk 0:02:46]} 2. d4 {[%clk 0:02:59]}  d5 {[%clk 0:02:47]} 3. e5 {[%clk 0:02:58]}  Bf5 {[%clk 0:02:47]} 4. Nf3 {[%clk 0:02:58]}  e6 {[%clk 0:02:47]} 5. Be2 {[%clk 0:02:57]}  Nd7 {[%clk 0:02:48]} 6. Nbd2 {[%clk 0:02:50]}  a5 {[%clk 0:02:47]} 7. a4 {[%clk 0:02:47]}  f6 {[%clk 0:02:47]} 8. Nb3 {[%clk 0:02:42]}  Qc7 {[%clk 0:02:16]} 9. O-O {[%clk 0:02:40]}  fxe5 {[%clk 0:02:16]} 10. dxe5 {[%clk 0:02:40]}  Nxe5 {[%clk 0:02:16]} 11. Nfd4 {[%clk 0:02:39]}  Qf7 {[%clk 0:02:06]} 12. f4 {[%clk 0:02:27]}  Nd7 {[%clk 0:01:49]} 13. Bh5 {[%clk 0:02:17]}  g6 {[%clk 0:01:48]} 14. Bf3 {[%clk 0:02:14]}  Ngf6 {[%clk 0:01:45]} 15. Re1 {[%clk 0:02:10]}  Be7 {[%clk 0:01:30]} 16. Bd2 {[%clk 0:01:59]}  Bd8 {[%clk 0:01:00]} 17. Bc3 {[%clk 0:01:56]}  Bb6 {[%clk 0:00:56]} 18. Kh1 {[%clk 0:01:54]}  O-O {[%clk 0:00:56]} 19. Qd2 {[%clk 0:01:15]}  Ne4 {[%clk 0:00:44]} 20. Bxe4 {[%clk 0:01:15]}  Bxe4 {[%clk 0:00:44]} 21. Rf1 {[%clk 0:01:13]}  e5 {[%clk 0:00:41]} 22. Ne2 {[%clk 0:01:04]}  g5 {[%clk 0:00:33]} 23. f5 {[%clk 0:00:55]}  Bxf5 {[%clk 0:00:07]} 24. Ng3 {[%clk 0:00:50]}  Qg6 {[%clk 0:00:07]} 25. Nxa5 {[%clk 0:00:46]}  e4 {[%clk 0:00:06]} 26. Nxb7 {[%clk 0:00:40]}  h5 {[%clk 0:00:05]} 27. a5 {[%clk 0:00:37]}  Ba7 {[%clk 0:00:05]} 28. Nxf5 {[%clk 0:00:27]}  Rxf5 {[%clk 0:00:04]} 29. Nd6 {[%clk 0:00:25]}  Rxf1+ {[%clk 0:00:04]} 30. Rxf1 {[%clk 0:00:10]}  Rf8 {[%clk 0:00:04]} 31. Rxf8+ {[%clk 0:00:00]}  Nxf8 {[%clk 0:00:05]} 0-1


[Site "https://www.chess.com"]

[Event "Titled Tuesday Blitz August 08 Early 2023"]
[White "Csonka, Balazs"]
[Black "Keleberda, Tymur"]
[WhiteFideId "742910"]
[BlackFideId "14174294"]
[WhiteElo "2721"]
[BlackElo "2554"]
[Result "1-0"]
[Round "9"]
[TimeControl "180+1"]
[Date "2023.08.08"]
[WhiteClock "0:02:24"]
[BlackClock "0:01:15"]
[Board "49"]

1. e4 {[%clk 0:03:00]}  c5 {[%clk 0:02:58]} 2. Nc3 {[%clk 0:02:58]}  d6 {[%clk 0:02:57]} 3. d4 {[%clk 0:02:55]}  cxd4 {[%clk 0:02:57]} 4. Qxd4 {[%clk 0:02:56]}  Nf6 {[%clk 0:02:52]} 5. b3 {[%clk 0:02:51]}  a6 {[%clk 0:02:51]} 6. Bb2 {[%clk 0:02:50]}  Nc6 {[%clk 0:02:51]} 7. Qd2 {[%clk 0:02:50]}  g6 {[%clk 0:02:51]} 8. O-O-O {[%clk 0:02:49]}  Bg7 {[%clk 0:02:51]} 9. f3 {[%clk 0:02:46]}  Be6 {[%clk 0:02:32]} 10. Kb1 {[%clk 0:02:43]}  b5 {[%clk 0:02:32]} 11. Nge2 {[%clk 0:02:40]}  Bd7 {[%clk 0:02:02]} 12. h4 {[%clk 0:02:34]}  b4 {[%clk 0:01:53]} 13. Nd5 {[%clk 0:02:34]}  a5 {[%clk 0:01:53]} 14. Nxf6+ {[%clk 0:02:30]}  Bxf6 {[%clk 0:01:53]} 15. Bxf6 {[%clk 0:02:30]}  exf6 {[%clk 0:01:53]} 16. Qxd6 {[%clk 0:02:30]}  a4 {[%clk 0:01:43]} 17. Nf4 {[%clk 0:02:29]}  axb3 {[%clk 0:01:39]} 18. cxb3 {[%clk 0:02:26]}  Ne5 {[%clk 0:01:15]} 19. Nd5 {[%clk 0:02:24]} 1-0


[Site "https://www.chess.com"]

[Event "Titled Tuesday Blitz August 08 Early 2023"]
[White "Belov, Alexei"]
[Black "Akobian, Varuzhan"]
[WhiteFideId "4128206"]
[BlackFideId "13300580"]
[WhiteElo "2554"]
[BlackElo "2712"]
[Result "0-1"]
[Round "9"]
[TimeControl "180+1"]
[Date "2023.08.08"]
[WhiteClock "0:00:06"]
[BlackClock "0:01:51"]
[Board "50"]

1. e4 {[%clk 0:03:00]}  d6 {[%clk 0:02:58]} 2. d4 {[%clk 0:03:00]}  Nf6 {[%clk 0:02:57]} 3. Nc3 {[%clk 0:03:00]}  c6 {[%clk 0:02:57]} 4. f4 {[%clk 0:02:59]}  Qa5 {[%clk 0:02:57]} 5. Bd3 {[%clk 0:02:58]}  e5 {[%clk 0:02:56]} 6. Nf3 {[%clk 0:02:57]}  Nbd7 {[%clk 0:02:55]} 7. Be3 {[%clk 0:02:46]}  Be7 {[%clk 0:02:55]} 8. Qd2 {[%clk 0:02:41]}  O-O {[%clk 0:02:54]} 9. O-O {[%clk 0:02:27]}  Qc7 {[%clk 0:02:51]} 10. Kh1 {[%clk 0:02:23]}  Re8 {[%clk 0:02:48]} 11. Rae1 {[%clk 0:02:09]}  Bf8 {[%clk 0:02:40]} 12. dxe5 {[%clk 0:01:57]}  dxe5 {[%clk 0:02:39]} 13. Nxe5 {[%clk 0:01:52]}  Nxe5 {[%clk 0:02:38]} 14. fxe5 {[%clk 0:01:52]}  Ng4 {[%clk 0:02:37]} 15. Bf4 {[%clk 0:01:38]}  Nxe5 {[%clk 0:02:37]} 16. Qf2 {[%clk 0:01:33]}  Be6 {[%clk 0:02:33]} 17. Qg3 {[%clk 0:01:31]}  Bd6 {[%clk 0:02:33]} 18. Ne2 {[%clk 0:01:18]}  Rad8 {[%clk 0:02:29]} 19. Rd1 {[%clk 0:00:43]}  Ng6 {[%clk 0:02:24]} 20. Bxd6 {[%clk 0:00:41]}  Qxd6 {[%clk 0:02:24]} 21. Qxd6 {[%clk 0:00:39]}  Rxd6 {[%clk 0:02:23]} 22. c3 {[%clk 0:00:30]}  Bxa2 {[%clk 0:02:20]} 23. Nd4 {[%clk 0:00:29]}  Ne5 {[%clk 0:02:14]} 24. Be2 {[%clk 0:00:23]}  Be6 {[%clk 0:02:08]} 25. h3 {[%clk 0:00:19]}  Red8 {[%clk 0:02:06]} 26. b4 {[%clk 0:00:19]}  a6 {[%clk 0:02:06]} 27. Kh2 {[%clk 0:00:18]}  g6 {[%clk 0:02:05]} 28. Kg3 {[%clk 0:00:18]}  Bc4 {[%clk 0:02:02]} 29. Bxc4 {[%clk 0:00:16]}  Nxc4 {[%clk 0:02:02]} 30. Kf4 {[%clk 0:00:16]}  Re8 {[%clk 0:01:55]} 31. Rde1 {[%clk 0:00:15]}  Rf6+ {[%clk 0:01:53]} 32. Kg5 {[%clk 0:00:10]}  Rxf1 {[%clk 0:01:52]} 33. Rxf1 {[%clk 0:00:10]}  Rxe4 {[%clk 0:01:53]} 34. Nb3 {[%clk 0:00:07]}  Kg7 {[%clk 0:01:51]} 35. Rd1 {[%clk 0:00:06]}  h6# {[%clk 0:01:51]} 0-1


[Site "https://www.chess.com"]

[Event "Titled Tuesday Blitz August 08 Early 2023"]
[White "Janaszak, Dawid"]
[Black "Morefield, Jason"]
[WhiteFideId "1119206"]
[BlackFideId "30920825"]
[WhiteElo "2554"]
[BlackElo "2696"]
[Result "0-1"]
[Round "9"]
[TimeControl "180+1"]
[Date "2023.08.08"]
[WhiteClock "0:00:22"]
[BlackClock "0:00:03"]
[Board "51"]

1. e4 {[%clk 0:03:00]}  c5 {[%clk 0:02:56]} 2. Nc3 {[%clk 0:03:00]}  Nc6 {[%clk 0:02:55]} 3. Bb5 {[%clk 0:03:00]}  Nd4 {[%clk 0:02:55]} 4. Nf3 {[%clk 0:02:59]}  a6 {[%clk 0:02:45]} 5. Bd3 {[%clk 0:02:58]}  g6 {[%clk 0:02:42]} 6. b4 {[%clk 0:02:56]}  d6 {[%clk 0:02:37]} 7. bxc5 {[%clk 0:02:53]}  dxc5 {[%clk 0:02:38]} 8. Nxd4 {[%clk 0:02:32]}  cxd4 {[%clk 0:02:37]} 9. Nd5 {[%clk 0:02:32]}  e6 {[%clk 0:02:32]} 10. Nf4 {[%clk 0:02:24]}  Bg7 {[%clk 0:02:31]} 11. O-O {[%clk 0:02:21]}  Ne7 {[%clk 0:02:30]} 12. a4 {[%clk 0:02:16]}  O-O {[%clk 0:02:28]} 13. Ba3 {[%clk 0:02:16]}  Re8 {[%clk 0:02:28]} 14. Re1 {[%clk 0:02:10]}  Nc6 {[%clk 0:02:27]} 15. g3 {[%clk 0:02:00]}  Bd7 {[%clk 0:02:20]} 16. Bf1 {[%clk 0:01:50]}  Ne5 {[%clk 0:02:18]} 17. d3 {[%clk 0:01:48]}  Bxa4 {[%clk 0:02:14]} 18. Qb1 {[%clk 0:01:21]}  b5 {[%clk 0:02:13]} 19. Bg2 {[%clk 0:01:17]}  Rc8 {[%clk 0:02:12]} 20. Ra2 {[%clk 0:01:14]}  Qa5 {[%clk 0:01:55]} 21. Bb4 {[%clk 0:01:14]}  Qc7 {[%clk 0:01:49]} 22. Re2 {[%clk 0:01:06]}  Bf8 {[%clk 0:01:09]} 23. Bxf8 {[%clk 0:01:02]}  Rxf8 {[%clk 0:01:08]} 24. Qb2 {[%clk 0:01:03]}  Qc3 {[%clk 0:01:03]} 25. Qb1 {[%clk 0:01:02]}  Rc7 {[%clk 0:00:57]} 26. h4 {[%clk 0:00:58]}  Rfc8 {[%clk 0:00:56]} 27. h5 {[%clk 0:00:59]}  Kg7 {[%clk 0:00:45]} 28. Bh3 {[%clk 0:00:54]}  g5 {[%clk 0:00:36]} 29. Bxe6 {[%clk 0:00:51]}  gxf4 {[%clk 0:00:34]} 30. Bxc8 {[%clk 0:00:50]}  f3 {[%clk 0:00:31]} 31. Re1 {[%clk 0:00:47]}  Rxc8 {[%clk 0:00:28]} 32. Qc1 {[%clk 0:00:45]}  h6 {[%clk 0:00:26]} 33. Ra1 {[%clk 0:00:41]}  Bxc2 {[%clk 0:00:24]} 34. Qf4 {[%clk 0:00:41]}  Rc5 {[%clk 0:00:18]} 35. Rf1 {[%clk 0:00:30]}  Bxd3 {[%clk 0:00:15]} 36. Rxa6 {[%clk 0:00:31]}  Nc6 {[%clk 0:00:08]} 37. Rfa1 {[%clk 0:00:25]}  Be2 {[%clk 0:00:03]} 38. e5 {[%clk 0:00:25]}  Rxe5 {[%clk 0:00:02]} 39. Rxc6 {[%clk 0:00:25]}  Qxa1+ {[%clk 0:00:01]} 40. Kh2 {[%clk 0:00:23]}  Rxh5+ {[%clk 0:00:02]} 41. Qh4 {[%clk 0:00:22]}  Rxh4+ {[%clk 0:00:03]} 42. gxh4 {[%clk 0:00:22]}  Qf1 {[%clk 0:00:03]} 0-1


[Site "https://www.chess.com"]

[Event "Titled Tuesday Blitz August 08 Early 2023"]
[White "Mammadzada, Gunay"]
[Black "Skliarov, Viktor"]
[WhiteFideId "13403729"]
[BlackFideId "14106736"]
[WhiteElo "2550"]
[BlackElo "2696"]
[Result "0-1"]
[Round "9"]
[TimeControl "180+1"]
[Date "2023.08.08"]
[WhiteClock "0:00:23"]
[BlackClock "0:00:20"]
[Board "52"]

1. e4 {[%clk 0:02:49]}  c5 {[%clk 0:02:59]} 2. Nf3 {[%clk 0:02:49]}  Nc6 {[%clk 0:02:59]} 3. Bb5 {[%clk 0:02:48]}  e6 {[%clk 0:02:59]} 4. O-O {[%clk 0:02:47]}  Nge7 {[%clk 0:02:59]} 5. Re1 {[%clk 0:02:47]}  Nd4 {[%clk 0:02:59]} 6. Bf1 {[%clk 0:02:45]}  Nec6 {[%clk 0:02:59]} 7. c3 {[%clk 0:02:45]}  Nxf3+ {[%clk 0:02:59]} 8. Qxf3 {[%clk 0:02:46]}  Be7 {[%clk 0:02:59]} 9. d3 {[%clk 0:02:44]}  O-O {[%clk 0:02:58]} 10. Qg3 {[%clk 0:02:45]}  Kh8 {[%clk 0:02:54]} 11. Nd2 {[%clk 0:02:42]}  b6 {[%clk 0:02:51]} 12. Rd1 {[%clk 0:02:39]}  Bb7 {[%clk 0:02:51]} 13. f4 {[%clk 0:02:39]}  f5 {[%clk 0:02:44]} 14. Nf3 {[%clk 0:02:39]}  d5 {[%clk 0:02:37]} 15. e5 {[%clk 0:02:32]}  d4 {[%clk 0:02:36]} 16. c4 {[%clk 0:02:26]}  a6 {[%clk 0:02:09]} 17. Bd2 {[%clk 0:02:21]}  b5 {[%clk 0:02:08]} 18. Be1 {[%clk 0:02:15]}  b4 {[%clk 0:01:52]} 19. Qh3 {[%clk 0:02:10]}  a5 {[%clk 0:01:46]} 20. Bh4 {[%clk 0:02:03]}  Bxh4 {[%clk 0:01:46]} 21. Nxh4 {[%clk 0:02:03]}  Kg8 {[%clk 0:01:44]} 22. Be2 {[%clk 0:02:01]}  a4 {[%clk 0:01:37]} 23. Rf1 {[%clk 0:01:58]}  Ne7 {[%clk 0:01:31]} 24. Rf2 {[%clk 0:01:53]}  Ng6 {[%clk 0:01:26]} 25. Nxg6 {[%clk 0:01:36]}  hxg6 {[%clk 0:01:27]} 26. Raf1 {[%clk 0:01:32]}  Kf7 {[%clk 0:01:26]} 27. g4 {[%clk 0:01:31]}  Rh8 {[%clk 0:01:24]} 28. Qg3 {[%clk 0:01:31]}  Qh4 {[%clk 0:01:23]} 29. Qxh4 {[%clk 0:01:15]}  Rxh4 {[%clk 0:01:22]} 30. gxf5 {[%clk 0:01:14]}  gxf5 {[%clk 0:01:20]} 31. Bf3 {[%clk 0:01:15]}  Bxf3 {[%clk 0:01:12]} 32. Rxf3 {[%clk 0:01:16]}  Rah8 {[%clk 0:01:11]} 33. R1f2 {[%clk 0:01:16]}  Rg4+ {[%clk 0:01:01]} 34. Rg3 {[%clk 0:01:10]}  Rh3 {[%clk 0:00:34]} 35. Rf3 {[%clk 0:01:03]}  Rhxg3+ {[%clk 0:00:33]} 36. hxg3 {[%clk 0:01:03]}  g5 {[%clk 0:00:33]} 37. Kf2 {[%clk 0:01:02]}  Kg6 {[%clk 0:00:28]} 38. Kf1 {[%clk 0:00:55]}  Kh5 {[%clk 0:00:21]} 39. Kf2 {[%clk 0:00:45]}  gxf4 {[%clk 0:00:21]} 40. gxf4 {[%clk 0:00:44]}  Kh4 {[%clk 0:00:22]} 41. Kf1 {[%clk 0:00:36]}  Rg3 {[%clk 0:00:21]} 42. Kf2 {[%clk 0:00:35]}  Rxf3+ {[%clk 0:00:19]} 43. Kxf3 {[%clk 0:00:23]}  Kh3 {[%clk 0:00:20]} 0-1


[Site "https://www.chess.com"]